bitfinex-derivatives/quotes_SOLF0:USTF0_20240823
["timestamp","ask_amount","ask_price","bid_price","bid_amount"]
[1724426190349,1.41354642,144.37,144.35,0.04552022]
[1724426190556,1.41354642,144.37,144.33,3.4637]
[1724426191045,1.41354642,144.37,144.31,33.23]
[1724426191444,1.41354642,144.37,144.29,3.53902623]
[1724426191645,4.87664642,144.37,144.33,3.4637]
[1724426191850,0.05023248,144.36,144.33,3.4637]
[1724426192046,3.51363248,144.36,144.32,3.51156659]
[1724426192455,0.05023248,144.36,144.32,3.51156659]
[1724426192650,3.4634,144.35,144.32,3.51156659]
[1724426192847,0.05023248,144.36,144.32,0.04766659]
[1724426193251,33.28023248,144.36,144.32,0.04766659]
[1724426193751,35.14217,144.36,144.26,33.23]
[1724426193952,1.3628,144.37,144.26,33.23]
[1724426193953,33.23,144.34,144.26,33.23]
[1724426194349,33.23,144.34,144.24,33.23]
[1724426194750,0.04985456,144.3,144.28,0.04766554]
[1724426195153,3.4652,144.28,144.24,3.466]
[1724426195549,1.3534,144.27,144.24,3.466]
[1724426196158,1.39819348,144.27,144.24,3.51725666]
[1724426196360,1.39819348,144.27,144.24,0.05125666]
[1724426197058,1.39819348,144.27,144.25,3.4657]
[1724426197261,1.39819348,144.27,144.24,0.05125666]
[1724426198364,1.39819348,144.27,144.25,3.4658]
[1724426200066,0.04479348,144.27,144.26,3.4656]
[1724426200265,0.04479348,144.27,144.26,36.6956]
[1724426200464,33.23,144.37,144.26,33.23]
[1724426200667,4.152,144.38,144.29,33.23]
[1724426200963,4.152,144.38,144.29,36.63368503]
[1724426201257,4.152,144.38,144.29,33.23]
[1724426201460,4.152,144.38,144.31,33.23]
[1724426201660,0.04843693,144.35,144.32,0.04442048]
[1724426202157,0.04843693,144.35,144.32,3.50852048]
[1724426202556,0.04843693,144.35,144.33,3.4638]
[1724426203155,0.04843693,144.35,144.32,3.50852048]
[1724426203963,3.51183693,144.35,144.32,3.50852048]
[1724426204262,3.51183693,144.35,144.32,0.04442048]
[1724426204459,0.04843693,144.35,144.32,0.04442048]
[1724426204963,3.51193693,144.35,144.32,0.04442048]
[1724426205666,0.04843693,144.35,144.32,0.04442048]
[1724426206760,3.51193693,144.35,144.32,3.50842048]
[1724426206961,0.04843693,144.35,144.32,3.50842048]
[1724426207662,3.51183693,144.35,144.32,3.50842048]
[1724426208064,0.04843693,144.35,144.33,3.4638]
[1724426208461,0.04843693,144.35,144.32,0.04442048]
[1724426208657,0.04843693,144.35,144.33,33.23]
[1724426209271,0.04843693,144.35,144.34,3.4637]
[1724426209658,0.04843693,144.35,144.32,0.04442048]
[1724426210270,3.4638,144.34,144.32,0.04442048]
[1724426210471,0.04843693,144.35,144.32,0.04442048]
[1724426210764,3.51203693,144.35,144.32,0.04442048]
[1724426210969,0.04843693,144.35,144.32,0.04442048]
[1724426211365,0.04843693,144.35,144.33,33.23]
[1724426211571,0.04843693,144.35,144.34,3.4637]
[1724426212972,0.04843693,144.35,144.32,33.27442048]
[1724426213468,0.04843693,144.35,144.34,3.4637]
[1724426218378,0.04843693,144.35,144.32,33.27442048]
[1724426218774,0.04843693,144.35,144.33,3.4638]
[1724426220174,0.04843693,144.35,144.32,3.50852048]
[1724426220374,0.04843693,144.35,144.32,0.04442048]
[1724426220676,0.04843693,144.35,144.34,3.4637]
[1724426222179,0.04843693,144.35,144.34,36.6937]
[1724426222373,34.5429,144.45,144.34,33.23]
[1724426222574,2.6149,144.45,144.37,33.23]
[1724426222781,3.4613,144.44,144.37,36.72954235]
[1724426222981,2.6149,144.45,144.4,3.4621]
[1724426223180,1.302,144.45,144.4,33.23]
[1724426223487,0.04977482,144.44,144.41,3.51141773]
[1724426223874,0.04977482,144.44,144.41,0.04961773]
[1724426224883,0.04977482,144.44,144.33,1.2823]
[1724426224884,1.36267482,144.44,144.33,34.5123]
[1724426225080,33.23,144.42,144.33,34.5123]
[1724426225884,33.23,144.42,144.31,33.23]
[1724426226189,0.05269658,144.39,144.36,0.0490851]
[1724426226486,3.4629,144.38,144.36,0.0490851]
[1724426226682,0.05269658,144.39,144.36,0.0490851]
[1724426226882,34.5237,144.38,144.36,0.0490851]
[1724426227083,3.4634,144.36,144.31,3.45290952]
[1724426227277,3.4634,144.36,144.29,33.23]
[1724426227680,3.4635,144.35,144.31,3.4644]
[1724426227877,35.8622,144.38,144.29,36.75907918]
[1724426228080,35.8622,144.38,144.32,0.04739874]
[1724426228285,0.04449916,144.35,144.33,3.4637]
[1724426229287,0.04449916,144.35,144.32,3.51149874]
[1724426229885,3.50799916,144.35,144.32,0.04739874]
[1724426230085,0.04449916,144.35,144.32,0.04739874]
[1724426230686,0.04449916,144.35,144.33,3.4638]
[1724426230981,0.04449916,144.35,144.32,0.04739874]
[1724426231181,0.04449916,144.35,144.33,33.23]
[1724426231383,0.04449916,144.35,144.34,3.4637]
[1724426233695,0.04449916,144.35,144.32,0.04739874]
[1724426235093,3.50809916,144.35,144.32,0.04739874]
[1724426235696,3.4637,144.34,144.32,0.04739874]
[1724426236195,0.04449916,144.35,144.32,0.04739874]
[1724426238287,0.04449916,144.35,144.32,3.51139874]
[1724426238493,0.04449916,144.35,144.32,0.04739874]
[1724426239493,3.4639,144.33,144.32,0.04739874]
[1724426244896,4.8073,144.33,144.32,0.04739874]
[1724426246198,3.4646,144.31,144.28,3.4649]
[1724426246802,3.4646,144.31,144.27,3.4652]
[1724426247294,3.4646,144.31,144.28,0.05057306]
[1724426247295,0.04687447,144.3,144.28,0.05057306]
[1724426247692,0.04687447,144.3,144.28,3.51557306]
[1724426247897,0.04687447,144.3,144.28,0.05057306]
[1724426249303,0.04687447,144.3,144.28,3.51567306]
[1724426250003,0.04687447,144.3,144.29,3.4648]
[1724426250500,0.04687447,144.3,144.29,36.6948]
[1724426250889,3.4636,144.35,144.32,3.464]
[1724426251091,1.3575,144.37,144.29,33.23]
[1724426251592,4.89653388,144.39,144.31,33.23]
[1724426251593,1.4035,144.39,144.31,33.23]
[1724426251795,0.04421112,144.36,144.34,0.04823533]
[1724426251999,3.4627,144.39,144.36,3.4631]
[1724426252304,0.04694029,144.39,144.36,3.4631]
[1724426252605,0.04694029,144.39,144.35,33.23]
[1724426253099,0.04694029,144.39,144.34,0.04976964]
[1724426253898,3.50954029,144.39,144.35,3.4634]
[1724426254404,0.04694029,144.39,144.35,3.4634]
[1724426254794,0.04694029,144.39,144.34,3.51336964]
[1724426255305,3.4631,144.37,144.34,0.04976964]
[1724426255906,34.5671,144.38,144.34,0.04976964]
[1724426256107,33.23,144.36,144.34,0.04976964]
[1724426256403,3.4634,144.35,144.34,0.04976964]
[1724426257198,0.0457262,144.36,144.34,0.04976964]
[1724426259197,3.4634,144.35,144.34,0.04976964]
[1724426260096,3.5089262,144.36,144.34,0.04976964]
[1724426260302,0.0457262,144.36,144.34,0.04976964]
[1724426261699,3.4634,144.35,144.34,0.04976964]
[1724426264508,0.0457262,144.36,144.34,0.04976964]
[1724426264713,3.5089262,144.36,144.34,0.04976964]
[1724426264914,0.0457262,144.36,144.34,0.04976964]
[1724426266219,3.4634,144.35,144.34,0.04976964]
[1724426271720,3.4646,144.31,144.27,3.4652]
[1724426272114,3.4648,144.3,144.25,26.62]
[1724426272422,3.4648,144.3,144.24,4.84782932]
[1724426272617,0.04987004,144.28,144.26,0.0511252]
[1724426275914,0.04987004,144.28,144.26,3.5166252]
[1724426276420,0.04987004,144.28,144.27,3.4653]
[1724426278819,0.04987004,144.28,144.26,30.1366252]
[1724426279319,0.04987004,144.28,144.26,3.5166252]
[1724426279825,0.04987004,144.28,144.27,3.4653]
[1724426282527,1.3799,144.34,144.26,26.6711252]
[1724426282724,1.3799,144.34,144.28,26.62]
[1724426282925,3.4641,144.33,144.28,26.62]
[1724426283125,1.3799,144.34,144.29,3.4647]
[1724426283427,1.3799,144.34,144.26,26.62]
[1724426283628,0.04634511,144.32,144.3,0.05126041]
[1724426283929,26.66634511,144.32,144.3,0.05126041]
[1724426284430,3.4644,144.31,144.3,0.05126041]
[1724426286023,26.62,144.32,144.22,1.3745]
[1724426286327,26.62,144.29,144.22,1.3745]
[1724426286527,26.62,144.31,144.23,26.62]
[1724426286734,27.9745,144.33,144.23,26.62]
[1724426286931,27.9745,144.33,144.25,3.4657]
[1724426287235,3.5119785,144.29,144.27,0.05315459]
[1724426288834,0.0469785,144.29,144.27,26.67315459]
[1724426289032,0.0469785,144.29,144.27,0.05315459]
[1724426289330,0.0469785,144.29,144.28,3.4651]
[1724426290830,26.62,144.38,144.28,26.62]
[1724426291030,1.3143,144.39,144.31,26.62]
[1724426291223,3.46788088,144.38,144.31,26.62]
[1724426291428,3.4631,144.37,144.32,3.4641]
[1724426292829,0.05024305,144.36,144.33,0.04978687]
[1724426293036,3.51344305,144.36,144.33,0.04978687]
[1724426293732,3.4635,144.35,144.33,0.04978687]
[1724426296138,3.4637,144.34,144.33,0.04978687]
[1724426297428,30.0837,144.34,144.33,0.04978687]
[1724426297625,30.0837,144.34,144.28,3.465]
[1724426297626,3.4643,144.32,144.28,3.465]
[1724426297830,26.62,144.32,144.27,3.4653]
[1724426298033,26.62,144.32,144.24,26.62]
[1724426298534,3.4648,144.3,144.26,3.4654]
[1724426298838,0.05222645,144.29,144.27,0.0494141]
[1724426300433,26.67222645,144.29,144.27,0.0494141]
[1724426301033,3.4651,144.28,144.27,0.0494141]
[1724426303335,26.62,144.27,144.2,26.62]
[1724426303534,3.48125649,144.3,144.2,26.62]
[1724426303535,26.62,144.29,144.2,26.62]
[1724426304036,26.62,144.29,144.22,26.62]
[1724426304233,0.04419464,144.27,144.26,3.4655]
[1724426304534,0.05267664,144.28,144.25,0.04822821]
[1724426305031,0.05267664,144.28,144.26,26.62]
[1724426305531,0.05267664,144.28,144.27,3.4653]
[1724426305833,1.3216,144.33,144.3,3.4646]
[1724426306033,3.4638,144.34,144.3,3.4646]
[1724426306732,3.464,144.33,144.26,26.62]
[1724426307027,26.62,144.33,144.26,26.62]
[1724426307230,0.05092962,144.31,144.28,0.05036995]
[1724426308036,26.67092962,144.31,144.28,0.05036995]
[1724426308431,26.62,144.29,144.28,0.05036995]
[1724426308636,30.0849,144.29,144.28,0.05036995]
[1724426308830,26.62,144.29,144.24,3.4659]
[1724426309736,26.62,144.29,144.25,0.05247735]
[1724426309942,0.0488579,144.28,144.25,0.05247735]
[1724426310343,3.5139579,144.28,144.25,0.05247735]
[1724426310736,0.0488579,144.28,144.25,3.51827735]
[1724426311840,0.0488579,144.28,144.26,3.4655]
[1724426312139,0.0488579,144.28,144.25,0.05247735]
[1724426312543,0.0488579,144.28,144.27,3.4653]
[1724426315746,0.0488579,144.28,144.27,30.0853]
[1724426316246,0.0488579,144.28,144.27,3.4653]
[1724426320544,0.0488579,144.28,144.27,30.0853]
[1724426320746,3.4641,144.33,144.3,3.4645]
[1724426321650,3.4643,144.32,144.29,3.4648]
[1724426322346,3.4644,144.31,144.3,0.05226615]
[1724426322553,3.4644,144.31,144.29,0.05185368]
[1724426322945,0.05269568,144.32,144.29,0.05185368]
[1724426322946,3.51689568,144.32,144.29,0.05185368]
[1724426323251,3.51689568,144.32,144.29,3.51665368]
[1724426323953,3.51689568,144.32,144.29,0.05185368]
[1724426324948,3.51689568,144.32,144.29,3.51655368]
[1724426325442,0.05269568,144.32,144.29,0.05185368]
[1724426325851,0.05269568,144.32,144.3,3.4646]
[1724426326358,3.51689568,144.32,144.29,3.51655368]
[1724426326550,0.05269568,144.32,144.29,3.51655368]
[1724426326753,0.05269568,144.32,144.29,0.05185368]
[1724426327144,0.05269568,144.32,144.31,3.4644]
[1724426327350,79.63275286,144.47,144.31,3.48482319]
[1724426327655,79.63275286,144.47,144.36,3.4631]
[1724426327656,3.4624,144.4,144.36,3.4631]
[1724426327848,27.9883,144.43,144.36,3.38230802]
[1724426328151,3.4619,144.42,144.38,3.4626]
[1724426328356,0.04926579,144.41,144.39,0.05211496]
[1724426328553,26.62,144.45,144.39,0.05211496]
[1724426328851,0.05229555,144.41,144.39,0.05211496]
[1724426330458,0.05229555,144.41,144.39,3.51451496]
[1724426331351,0.05229555,144.41,144.39,0.05211496]
[1724426331553,26.67229555,144.41,144.39,0.05211496]
[1724426332657,0.05229555,144.41,144.39,0.05211496]
[1724426334258,3.51439555,144.41,144.39,0.05211496]
[1724426335151,0.05229555,144.41,144.39,0.05211496]
[1724426336458,0.05229555,144.41,144.39,3.51451496]
[1724426338160,0.05229555,144.41,144.4,3.4622]
[1724426338355,0.05229555,144.41,144.39,0.05211496]
[1724426339358,0.05229555,144.41,144.39,3.51441496]
[1724426339565,0.05229555,144.41,144.39,0.05211496]
[1724426339757,0.05229555,144.41,144.4,3.4622]
[1724426340566,0.05229555,144.41,144.4,30.0822]
[1724426341462,26.62,144.49,144.43,3.4615]
[1724426341764,3.4606,144.47,144.42,26.62]
[1724426341969,4.1341,144.5,144.42,26.62]
[1724426342158,4.1341,144.5,144.44,3.4611]
[1724426342465,0.05060735,144.48,144.46,0.04584619]
[1724426343455,3.4605,144.47,144.46,0.04584619]
[1724426343763,26.67060735,144.48,144.46,0.04584619]
[1724426344163,3.4605,144.47,144.46,0.04584619]
[1724426345568,26.67060735,144.48,144.46,0.04584619]
[1724426345865,0.05060735,144.48,144.46,0.04584619]
[1724426346061,3.51090735,144.48,144.46,0.04584619]
[1724426346761,0.05060735,144.48,144.46,0.04584619]
[1724426346959,3.4605,144.47,144.46,0.04584619]
[1724426347159,0.05060735,144.48,144.46,0.04584619]
[1724426350958,3.4605,144.47,144.46,0.04584619]
[1724426352372,3.51100735,144.48,144.46,0.04584619]
[1724426353872,3.4605,144.47,144.46,0.04584619]
[1724426355071,26.67060735,144.48,144.39,26.62]
[1724426355268,1.3067,144.47,144.39,26.62]
[1724426355471,1.3067,144.47,144.41,26.62]
[1724426355667,1.3981,144.5,144.4,26.62]
[1724426355868,1.3981,144.5,144.44,26.62]
[1724426356170,3.461,144.46,144.41,26.62]
[1724426356466,3.461,144.46,144.42,0.05161373]
[1724426356467,0.04411485,144.45,144.42,0.05161373]
[1724426356769,0.04411485,144.45,144.42,3.51331373]
[1724426357073,0.04411485,144.45,144.42,0.05161373]
[1724426358269,3.4614,144.44,144.42,0.05161373]
[1724426358463,0.04411485,144.45,144.42,0.05161373]
[1724426359469,3.4614,144.44,144.42,0.05161373]
[1724426361776,3.4615,144.43,144.42,0.05161373]
[1724426362372,0.04411485,144.45,144.42,0.05161373]
[1724426363078,3.4615,144.43,144.42,0.05161373]
[1724426363775,3.4624,144.4,144.37,26.62]
[1724426363983,6.21878544,144.44,144.37,26.62]
[1724426364281,26.62,144.43,144.33,26.62]
[1724426364580,6.21878544,144.44,144.33,26.62]
[1724426364581,26.62,144.42,144.33,26.62]
[1724426364880,0.04546967,144.39,144.36,0.05006598]
[1724426365476,3.4627,144.38,144.36,0.05006598]
[1724426365878,0.04546967,144.39,144.36,0.05006598]
[1724426366084,3.50806967,144.39,144.36,0.05006598]
[1724426366278,0.04546967,144.39,144.36,0.05006598]
[1724426366686,3.4627,144.38,144.36,0.05006598]
[1724426367287,3.50796967,144.39,144.36,0.05006598]
[1724426367680,0.04546967,144.39,144.36,0.05006598]
[1724426367982,3.4629,144.38,144.36,0.05006598]
[1724426368176,0.04546967,144.39,144.36,0.05006598]
[1724426368685,3.4629,144.37,144.36,0.05006598]
[1724426369379,0.04546967,144.39,144.36,0.05006598]
[1724426369779,3.4629,144.37,144.36,0.05006598]
[1724426371982,3.4629,144.37,144.18,3.22501205]
[1724426371983,26.62,144.37,144.18,3.22501205]
[1724426372290,26.62,144.33,144.24,26.62]
[1724426372581,26.62,144.33,144.26,26.62]
[1724426372786,26.62,144.35,144.28,26.62]
[1724426373182,0.04485108,144.33,144.3,0.05052175]
[1724426373985,3.4641,144.32,144.3,0.05052175]
[1724426374689,0.04485108,144.33,144.3,0.05052175]
[1724426375083,3.4644,144.31,144.3,0.05052175]
[1724426375382,0.04485108,144.33,144.3,0.05052175]
[1724426375784,3.50895108,144.33,144.3,0.05052175]
[1724426376193,3.4643,144.32,144.3,0.05052175]
[1724426376387,0.04485108,144.33,144.3,0.05052175]
[1724426376990,3.4641,144.32,144.3,0.05052175]
[1724426377389,3.4644,144.31,144.3,0.05052175]
[1724426377787,0.04485108,144.33,144.3,0.05052175]
[1724426377984,3.50895108,144.33,144.3,0.05052175]
[1724426378389,0.04485108,144.33,144.3,0.05052175]
[1724426380097,3.4644,144.31,144.3,0.05052175]
[1724426382288,1.3212,144.32,144.3,0.05052175]
[1724426382485,0.04485108,144.33,144.3,0.05052175]
[1724426384690,3.50895108,144.33,144.3,0.05052175]
[1724426385604,3.4644,144.31,144.3,0.05052175]
[1724426386497,0.04485108,144.33,144.3,0.05052175]
[1724426386498,3.4642,144.32,144.3,0.05052175]
[1724426387100,0.04485108,144.33,144.3,0.05052175]
[1724426387598,3.4643,144.32,144.3,0.05052175]
[1724426390609,3.4644,144.31,144.3,0.05052175]
[1724426391203,3.4642,144.32,144.3,0.05052175]
[1724426392301,0.04485108,144.33,144.3,0.05052175]
[1724426392897,3.4644,144.31,144.3,0.05052175]
[1724426393898,3.4642,144.32,144.3,0.05052175]
[1724426394301,0.04485108,144.33,144.3,0.05052175]
[1724426394504,3.4641,144.32,144.3,0.05052175]
[1724426394695,0.04485108,144.33,144.3,0.05052175]
[1724426394897,26.62,144.32,144.3,0.05052175]
[1724426395098,3.4644,144.31,144.3,0.05052175]
[1724426396497,3.4642,144.32,144.3,0.05052175]
[1724426398403,3.4641,144.32,144.3,0.05052175]
[1724426398599,26.62,144.32,144.3,0.05052175]
[1724426399201,3.4644,144.31,144.3,0.05052175]
[1724426400199,30.0842,144.32,144.3,0.05052175]
[1724426400417,3.4642,144.32,144.3,0.05052175]
[1724426400707,0.04485108,144.33,144.3,0.05052175]
[1724426401508,20.78,144.44,144.3,0.05052175]
[1724426401509,26.62,144.42,144.32,26.62]
[1724426401709,26.62,144.42,144.34,3.4636]
[1724426401909,3.4625,144.39,144.34,3.4636]
[1724426402106,26.62,144.42,144.34,3.42157164]
[1724426402411,0.04607832,144.39,144.37,0.04850554]
[1724426403606,26.62,144.38,144.37,0.04850554]
[1724426404316,30.0827,144.38,144.37,0.04850554]
[1724426407010,3.4627,144.38,144.37,0.04850554]
[1724426407208,3.50857832,144.39,144.37,0.04850554]
[1724426407715,0.04607832,144.39,144.37,0.04850554]
[1724426409014,26.62,144.38,144.29,26.62]
[1724426409215,26.62,144.36,144.27,26.62]
[1724426409412,30.0839,144.34,144.29,3.4647]
[1724426409717,26.62,144.34,144.29,3.4647]
[1724426410019,26.62,144.34,144.29,3.4649]
[1724426410020,3.4641,144.33,144.29,3.4649]
[1724426410212,3.50917273,144.33,144.3,0.04649304]
[1724426411121,0.04507273,144.33,144.3,0.04649304]
[1724426411420,26.66507273,144.33,144.3,0.04649304]
[1724426411610,3.4643,144.32,144.3,0.04649304]
[1724426411813,26.66507273,144.33,144.3,0.04649304]
[1724426412214,3.4644,144.32,144.3,0.04649304]
[1724426412415,0.04507273,144.33,144.3,0.04649304]
[1724426413018,0.04507273,144.33,144.31,3.4642]
[1724426414624,0.04507273,144.33,144.31,3.4644]
[1724426414919,0.04507273,144.33,144.31,29.99803027]
[1724426415524,0.04507273,144.33,144.31,26.62]
[1724426415917,0.04507273,144.33,144.32,3.4641]
[1724426417817,0.04507273,144.33,144.31,3.4643]
[1724426418123,0.04507273,144.33,144.3,0.04649304]
[1724426419327,0.04507273,144.33,144.31,3.4643]
[1724426419627,0.04507273,144.33,144.3,0.04649304]
[1724426420123,3.4644,144.31,144.3,0.04649304]
[1724426420320,30.0844,144.31,144.3,0.04649304]
[1724426421732,3.4653,144.28,144.2,29.3712]
[1724426421924,26.62,144.27,144.21,3.46193821]
[1724426422231,26.62,144.29,144.2,29.3712]
[1724426422425,26.62,144.29,144.21,3.42523432]
[1724426422734,4.69044681,144.32,144.23,26.62]
[1724426422935,1.2988,144.32,144.25,26.62]
[1724426423128,0.04839504,144.29,144.27,0.03477699]
[1724426424531,0.04839504,144.29,144.28,3.4651]
[1724426425321,0.04839504,144.29,144.27,3.50007699]
[1724426425827,0.04839504,144.29,144.27,0.03477699]
[1724426427331,0.04839504,144.29,144.27,3.50007699]
[1724426427828,0.04839504,144.29,144.27,0.03477699]
[1724426428630,3.51329504,144.29,144.27,0.03477699]
[1724426428932,0.04839504,144.29,144.27,0.03477699]
[1724426431223,3.51329504,144.29,144.27,0.03477699]
[1724426431829,0.04839504,144.29,144.27,0.03477699]
[1724426432031,0.04839504,144.29,144.27,3.49997699]
[1724426432730,0.04839504,144.29,144.28,3.4651]
[1724426433536,0.04839504,144.29,144.27,3.49997699]
[1724426434231,0.04839504,144.29,144.28,3.4651]
[1724426434632,0.04839504,144.29,144.27,0.03477699]
[1724426434931,0.04839504,144.29,144.27,3.49997699]
[1724426435635,0.04839504,144.29,144.28,3.4651]
[1724426435929,0.04839504,144.29,144.27,0.03477699]
[1724426436933,0.04839504,144.29,144.27,3.50007699]
[1724426437930,3.51329504,144.29,144.27,0.03477699]
[1724426439133,3.4651,144.28,144.27,0.03477699]
[1724426439341,30.0851,144.28,144.27,0.03477699]
[1724426439840,3.51329504,144.29,144.27,0.03477699]
[1724426440440,0.04839504,144.29,144.27,0.03477699]
[1724426441037,0.04839504,144.29,144.27,3.50007699]
[1724426442737,0.04839504,144.29,144.28,3.4651]
[1724426446948,0.04839504,144.29,144.27,0.03477699]
[1724426447748,26.62,144.28,144.27,0.03477699]
[1724426448150,30.0851,144.28,144.27,0.03477699]
[1724426451060,3.4651,144.28,144.27,0.03477699]
[1724426451260,30.0851,144.28,144.27,0.03477699]
[1724426452955,26.62,144.28,144.27,0.03477699]
[1724426454665,30.0851,144.28,144.27,0.03477699]
[1724426454961,26.62,144.28,144.27,0.03477699]
[1724426457065,30.0851,144.28,144.27,0.03477699]
[1724426460161,26.62,144.28,144.27,0.03477699]
[1724426460358,0.04839504,144.29,144.27,0.03477699]
[1724426460559,0.04839504,144.29,144.27,3.49997699]
[1724426460760,0.04839504,144.29,144.27,0.03477699]
[1724426462861,0.04839504,144.29,144.28,3.4651]
[1724426464268,77.53175906,144.36,144.29,3.3893506]
[1724426464567,77.53175906,144.36,144.28,26.62]
[1724426464761,3.4634,144.36,144.28,26.62]
[1724426465364,0.04673348,144.33,144.31,0.04803311]
[1724426465667,0.04673348,144.33,144.32,3.4641]
[1724426467268,0.04673348,144.33,144.31,3.51233311]
[1724426467866,26.66673348,144.33,144.31,0.04803311]
[1724426469268,30.13073348,144.33,144.31,0.04803311]
[1724426470467,3.4641,144.32,144.31,0.04803311]
[1724426471473,26.66673348,144.33,144.31,0.04803311]
[1724426473369,30.13073348,144.33,144.31,0.04803311]
[1724426474171,26.66673348,144.33,144.31,0.04803311]
[1724426474771,3.4641,144.32,144.31,0.04803311]
[1724426476171,30.0841,144.32,144.31,0.04803311]
[1724426476376,31.4975,144.32,144.31,0.04803311]
[1724426478073,3.4649,144.29,144.23,28.0085]
[1724426478270,26.62,144.27,144.19,46.20567365]
[1724426478577,26.62,144.27,144.22,3.4663]
[1724426478770,30.0855,144.27,144.22,3.4663]
[1724426479475,30.0855,144.27,144.21,3.45884806]
[1724426479476,26.62,144.25,144.23,0.03513891]
[1724426479672,26.6727984,144.25,144.23,0.03513891]
[1724426479882,30.1385984,144.25,144.23,0.03513891]
[1724426480176,26.6727984,144.25,144.23,0.03513891]
[1724426480577,0.0527984,144.25,144.23,0.03513891]
[1724426480776,0.0527984,144.25,144.23,26.65513891]
[1724426481075,0.0527984,144.25,144.24,3.4661]
[1724426483981,0.0527984,144.25,144.23,3.50133891]
[1724426484669,0.0527984,144.25,144.23,0.03513891]
[1724426485478,0.0527984,144.25,144.24,3.4661]
[1724426486479,0.0527984,144.25,144.23,0.03513891]
[1724426486877,0.0527984,144.25,144.23,3.50123891]
[1724426487386,0.0527984,144.25,144.23,0.03513891]
[1724426488679,3.5187984,144.25,144.23,0.03513891]
[1724426488979,26.62,144.24,144.13,3.49261804]
[1724426489177,26.62,144.22,144.14,0.97413362]
[1724426489381,30.0866,144.22,144.14,0.97413362]
[1724426489684,6.10869802,144.24,144.14,0.97413362]
[1724426489685,26.62,144.2,144.14,0.97413362]
[1724426489884,3.4674,144.19,144.13,3.52380033]
[1724426490179,0.05114853,144.17,144.12,3.53939236]
[1724426490382,30.0881,144.16,144.1,29.3778609]
[1724426490679,30.0881,144.16,144.08,26.62]
[1724426490680,30.0881,144.16,144.11,3.48568646]
[1724426490876,0.04761574,144.15,144.08,26.62]
[1724426491070,0.04761574,144.15,144.12,3.4689]
[1724426491275,0.04761574,144.15,144.09,3.40119202]
[1724426491475,0.04761574,144.15,144.08,26.62]
[1724426491876,0.04761574,144.15,144.1,3.4693]
[1724426492176,26.62,144.14,144.08,3.53604715]
[1724426492576,0.04761574,144.15,144.07,1.2863]
[1724426492777,0.0498381,144.12,144.08,4.35792848]
[1724426492978,0.0498381,144.12,144.06,27.9342]
[1724426493181,0.0498381,144.12,144.1,3.4693]
[1724426493384,0.0498381,144.12,144.06,31.37941927]
[1724426493684,0.0498381,144.12,144.08,26.62]
[1724426493985,0.0498381,144.12,144.11,3.4692]
[1724426500784,1.297,144.17,144.15,3.4681]
[1724426500985,1.297,144.17,144.1,26.62]
[1724426501188,2.6508,144.23,144.12,26.62]
[1724426501189,26.62,144.2,144.12,26.62]
[1724426501488,30.087,144.2,144.12,26.62]
[1724426501685,26.62,144.2,144.12,26.62]
[1724426502187,3.4673,144.19,144.15,3.4681]
[1724426502589,3.4673,144.19,144.15,0.04983811]
[1724426502590,0.05135986,144.17,144.15,0.04983811]
[1724426502790,0.05135986,144.17,144.16,3.468]
[1724426503089,0.05135986,144.17,144.15,0.04983811]
[1724426503590,0.05135986,144.17,144.15,3.51793811]
[1724426504291,26.67135986,144.17,144.15,0.04983811]
[1724426505078,1.4061,144.16,144.07,26.62]
[1724426505286,26.62,144.14,144.08,0.97476228]
[1724426505488,26.62,144.14,144.07,0.97476228]
[1724426505678,26.62,144.14,144.11,3.469]
[1724426506188,26.67129585,144.14,144.06,4.75941927]
[1724426506379,26.67129585,144.14,144.07,0.97477683]
[1724426507489,26.67129585,144.14,144.12,3.4688]
[1724426509491,0.05129585,144.14,144.13,3.4687]
[1724426513795,26.62,144.21,144.12,26.62]
[1724426514288,26.62,144.21,144.14,26.62]
[1724426514596,0.05067737,144.19,144.18,3.4673]
[1724426518095,0.05067737,144.19,144.17,3.4677]
[1724426518695,0.05067737,144.19,144.16,3.51919585]
[1724426521996,0.05067737,144.19,144.16,0.05129585]
[1724426522294,0.05067737,144.19,144.16,30.17565654]
[1724426522496,0.05067737,144.19,144.18,3.4675]
[1724426526294,26.67067737,144.19,144.16,0.05129585]